[Event "IND-ch Senior Open 2019"]
[Site "Mazitar"]
[Date "2019.12.12"]
[Round "4.18"]
[White "Ravi, Teja S."]
[Black "Akshit Kumar J"]
[Result "1-0"]
[ECO "D45"]
[WhiteElo "2455"]
[BlackElo "2107"]
[Annotator "ChessBase"]
[PlyCount "85"]
[EventDate "2018.12.08"]
[EventType "swiss"]
[EventRounds "11"]
[EventCountry "IND"]
[SourceTitle "playchess.com"]
[Source "ChessBase"]
[SourceQuality "1"]
[TimeControl "40/5400+30:1800+30"]

1. d4 {[%emt 1:28:01]} d5 {[%emt 1:30:29]} 2. c4 {[%emt 0:02:57]} c6 {[%emt 0:00:31]} 3. Nf3 {[%emt 0:00:29]} Nf6 {[%emt 0:00:30]} 4. Nc3 {[%emt 0:00:27]} e6 {[%emt 0:00:10]} 5. e3 {[%emt 0:00:35]} Nbd7 {[%emt 0:00:25]} 6. Qc2 {[%emt 0:00:30]} Bd6 {[%emt 0:00:00]} 7. Bd3 {[%emt 0:00:30]} dxc4 {[%emt 0:01:25]} 8. Bxc4 {[%emt 0:00:31]} b5 {[%emt 0:00:28]} 9. Be2 {[%emt 0:00:00]} Bb7 {[%emt 0:00:32]} 10. O-O {[%emt 0:00:59]} O-O {[%emt 0:00:14]} 11. e4 {[%emt 0:00:10]} e5 {[%emt 0:00:46]} 12. dxe5 {[%emt 0:00:50]} Nxe5 {[%emt 0:00:10]} 13. Nh4 {[%emt 0:00:30]} g6 {[%emt 0:00:00]} 14. f4 {[%emt 0:00:30]} Neg4 {[%emt 0:00:00]} 15. g3 {[%emt 0:00:31]} Bc5+ {[%emt 0:00:00]} 16. Kh1 {[%emt 0:00:29]} Ne3 {[%emt 0:00:00]} 17. Bxe3 {[%emt 0:00:24]} Bxe3 {[%emt 0:02:50]} 18. Ng2 {[%emt 0:00:00]} Bd4 {[%emt 0:00:29]} 19. Bf3 {[%emt 0:00:00]} Qb6 {[%emt 0:00:31]} 20. Rad1 {[%emt 0:00:00]} Rad8 {[%emt 0:00:29]} 21. e5 {[%emt 0:00:00]} Bxc3 {[%emt 0:00:31]} 22. Qxc3 {[%emt 0:00:00]} Nd5 {[%emt 0:00:30]} 23. Qc1 {[%emt 0:00:00]} Ne7 {[%emt 0:00:30]} 24. b4 {[%emt 0:00:00]} Rxd1 {[%emt 0:00:29]} 25. Rxd1 {[%emt 0:00:00]} Rd8 {[%emt 0:00:30]} 26. a3 {[%emt 0:00:00]} Nf5 {[%emt 0:00:30]} 27. g4 {[%emt 0:00:00]} Nd4 {[%emt 0:00:31]} 28. Be4 {[%emt 0:03:25]} Nb3 {[%emt 0:00:29]} 29. Rxd8+ {[%emt 0:00:00]} Qxd8 {[%emt 0:00:31]} 30. Qc2 {[%emt 0:00:00]} Qd4 {[%emt 0:00:29]} 31. h4 {[%emt 0:00:00]} Nd2 {[%emt 0:00:30]} 32. Qd3 {[%emt 0:02:03]} Qxe4 {[%emt 0:00:31]} 33. Qxd2 {[%emt 0:00:14]} c5 {[%emt 0:00:29]} 34. bxc5 {[%emt 0:02:55]} Qf3 {[%emt 0:00:31]} 35. Kh2 {[%emt 0:00:00]} Kg7 {[%emt 0:00:30]} 36. f5 {[%emt 0:00:00]} gxf5 {[%emt 0:00:30]} 37. Qg5+ {[%emt 0:01:29]} Kf8 {[%emt 0:00:29]} 38. gxf5 {[%emt 0:00:31]} Qxg2+ {[%emt 0:00:31]} 39. Qxg2 {[%emt 0:00:29]} Bxg2 {[%emt 0:00:29]} 40. Kxg2 {[%emt 0:00:31]} a5 {[%emt 0:00:31]} 41. c6 {[%emt 0:30:30]} Ke8 {[%emt 0:30:29]} 42. c7 {[%emt 0:00:29]} Kd7 {[%emt 0:00:31]} 43. e6+ {[%emt 0:00:30]} 1-0

[Event "IND-ch Senior Open 2019"]
[Site "Mazitar"]
[Date "2019.12.12"]
[Round "4.19"]
[White "Bakre, Tejas"]
[Black "Priyanka, Kumari"]
[Result "1-0"]
[ECO "E98"]
[WhiteElo "2445"]
[BlackElo "1874"]
[Annotator "ChessBase"]
[PlyCount "60"]
[EventDate "2018.12.08"]
[EventType "swiss"]
[EventRounds "11"]
[EventCountry "IND"]
[SourceTitle "playchess.com"]
[Source "ChessBase"]
[SourceQuality "1"]
[TimeControl "40/5400+30:1800+30"]

1. d4 {[%emt 1:26:43]} Nf6 {[%emt 1:30:29]} 2. c4 {[%emt 0:04:17]} g6 {[%emt 0:00:31]} 3. Nc3 {[%emt 0:00:27]} Bg7 {[%emt 0:00:30]} 4. e4 {[%emt 0:00:31]} d6 {[%emt 0:00:30]} 5. Nf3 {[%emt 0:00:31]} O-O {[%emt 0:00:27]} 6. Be2 {[%emt 0:00:30]} e5 {[%emt 0:00:30]} 7. O-O {[%emt 0:00:30]} Nc6 {[%emt 0:00:30]} 8. d5 {[%emt 0:00:30]} Ne7 {[%emt 0:00:31]} 9. Ne1 {[%emt 0:00:31]} Nd7 {[%emt 0:00:00]} 10. Be3 {[%emt 0:00:26]} f5 {[%emt 0:01:02]} 11. f3 {[%emt 0:00:32]} f4 {[%emt 0:00:30]} 12. Bf2 {[%emt 0:00:31]} g5 {[%emt 0:00:30]} 13. g4 {[%emt 0:00:28]} fxg3 {[%emt 0:00:29]} 14. hxg3 {[%emt 0:00:33]} h5 {[%emt 0:00:28]} 15. Qd2 Ng6 16. Be3 {[%emt 0:00:56]} Bf6 {[%emt 0:01:00]} 17. Nd3 {[%emt 0:00:32]} Nb6 {[%emt 0:00:00]} 18. b3 {[%emt 0:00:29]} c5 {[%emt 0:01:03]} 19. Rf2 {[%emt 0:00:30]} Rf7 {[%emt 0:00:28]} 20. Rh2 {[%emt 0:00:31]} h4 {[%emt 0:00:30]} 21. gxh4 {[%emt 0:00:17]} Nxh4 {[%emt 0:00:31]} 22. Kh1 {[%emt 0:00:41]} Rg7 {[%emt 0:00:29]} 23. Rg1 {[%emt 0:00:30]} Nd7 {[%emt 0:00:23]} 24. Nf2 {[%emt 0:00:31]} Nf8 {[%emt 0:00:39]} 25. Nh3 {[%emt 0:00:31]} Bxh3 {[%emt 0:00:26]} 26. Rxh3 {[%emt 0:00:30]} Nh7 {[%emt 0:00:31]} 27. Bf1 {[%emt 0:00:00]} Ng6 {[%emt 0:00:31]} 28. Qh2 {[%emt 0:01:00]} Nf4 {[%emt 0:00:26]} 29. Bxf4 {[%emt 0:00:31]} exf4 {[%emt 0:00:36]} 30. Bd3 {[%emt 0:00:28]} Be5 {[%emt 0:00:00] d3 Bxc3 -error} 1-0

[Event "IND-ch Senior Open 2019"]
[Site "Mazitar"]
[Date "2019.12.12"]
[Round "4.20"]
[White "Manigandan, S S"]
[Black "Karthikeyan, P.."]
[Result "0-1"]
[ECO "E10"]
[WhiteElo "2164"]
[BlackElo "2423"]
[Annotator "ChessBase"]
[PlyCount "80"]
[EventDate "2018.12.08"]
[EventType "swiss"]
[EventRounds "11"]
[EventCountry "IND"]
[SourceTitle "playchess.com"]
[Source "ChessBase"]
[SourceQuality "1"]
[TimeControl "40/5400+30:1800+30"]

1. d4 {[%emt 1:30:09]} Nf6 {[%emt 1:30:29]} 2. c4 {[%emt 0:00:49]} e6 {[%emt 0:00:31]} 3. Nf3 {[%emt 0:00:30]} a6 {[%emt 0:00:28]} 4. Nc3 {[%emt 0:00:23]} Bb4 {[%emt 0:00:31]} 5. Bd2 {[%emt 0:00:36]} O-O {[%emt 0:00:28]} 6. g3 {[%emt 0:00:32]} d5 {[%emt 0:00:26]} 7. Qb3 {[%emt 0:00:30]} c5 {[%emt 0:00:36]} 8. dxc5 {[%emt 0:00:00]} Bxc5 {[%emt 0:00:31]} 9. Bg2 {[%emt 0:01:00]} Nc6 {[%emt 0:00:22]} 10. cxd5 {[%emt 0:00:00]} exd5 {[%emt 0:00:37]} 11. O-O {[%emt 0:00:46]} d4 {[%emt 0:00:00]} 12. Na4 {[%emt 0:00:00]} Ba7 {[%emt 0:00:56]} 13. Rac1 {[%emt 0:00:44]} Qe7 {[%emt 0:00:00]} 14. Qd3 {[%emt 0:01:00]} Rd8 {[%emt 0:00:00]} 15. a3 {[%emt 0:00:00]} h6 {[%emt 0:00:14]} 16. b4 {[%emt 0:00:09]} Ne4 {[%emt 0:00:55]} 17. Ne5 {[%emt 0:00:00]} Nxg3 {[%emt 0:00:00]} 18. Nxc6 {[%emt 0:00:00]} Nxe2+ {[%emt 0:01:54]} 19. Kh1 {[%emt 0:02:16]} bxc6 {[%emt 0:00:31]} 20. Rce1 {[%emt 0:00:32]} Re8 {[%emt 0:00:30]} 21. Bf3 {[%emt 0:00:26]} Bh3 {[%emt 0:00:30]} 22. Bxe2 {[%emt 0:00:00]} Bxf1 {[%emt 0:00:00]} 23. Bxf1 {[%emt 0:01:02]} Qf6 {[%emt 0:00:00]} 24. Rxe8+ {[%emt 0:00:00]} Rxe8 {[%emt 0:00:47]} 25. Kg1 {[%emt 0:00:23]} Bb8 {[%emt 0:00:08]} 26. Nc5 {[%emt 0:01:13]} a5 {[%emt 0:00:00]} 27. Nd7 {[%emt 0:00:00]} Bxh2+ {[%emt 0:00:00]} 28. Kxh2 {[%emt 0:00:47]} Qxf2+ {[%emt 0:00:00]} 29. Bg2 {[%emt 0:00:00]} Re2 {[%emt 0:00:00]} 30. Qg3 {[%emt 0:01:12]} Qxg3+ {[%emt 0:03:35]} 31. Kxg3 Rxd2 {[%emt 0:00:31]} 32. Bxc6 {[%emt 0:01:01]} Rd3+ {[%emt 0:00:00]} 33. Kf4 {[%emt 0:00:21]} axb4 {[%emt 0:00:45]} 34. axb4 {[%emt 0:00:39]} Rh3 {[%emt 0:00:43]} 35. Kg4 {[%emt 0:00:00]} Re3 {[%emt 0:00:00]} 36. Ba4 {[%emt 0:00:59]} d3 {[%emt 0:00:00]} 37. Kf4 {[%emt 0:00:31]} Rh3 {[%emt 0:00:00]} 38. Kg4 {[%emt 0:00:30]} Rh1 39. b5 {[%emt 0:00:18]} Ra1 {[%emt 0:00:15]} 40. Bb3 {[%emt 0:00:42]} Rb1 {[%emt 0:00:00]} 0-1

[Event "IND-ch Senior Open 2019"]
[Site "Mazitar"]
[Date "2019.12.12"]
[Round "4.21"]
[White "Mohammad Nubairshah Shaikh"]
[Black "Anustoop Biswas"]
[Result "1-0"]
[ECO "D18"]
[WhiteElo "2421"]
[BlackElo "2087"]
[Annotator "ChessBase"]
[PlyCount "103"]
[EventDate "2018.12.08"]
[EventType "swiss"]
[EventRounds "11"]
[EventCountry "IND"]
[SourceTitle "playchess.com"]
[Source "ChessBase"]
[SourceQuality "1"]
[TimeControl "40/5400+30:1800+30"]

1. d4 {[%emt 1:29:57]} d5 {[%emt 1:30:29]} 2. c4 {[%emt 0:01:01]} c6 {[%emt 0:00:30]} 3. Nf3 {[%emt 0:00:29]} Nf6 {[%emt 0:00:31]} 4. Nc3 {[%emt 0:00:31]} dxc4 {[%emt 0:00:27]} 5. a4 {[%emt 0:00:32]} Bf5 {[%emt 0:00:00]} 6. e3 {[%emt 0:00:29]} e6 {[%emt 0:01:02]} 7. Bxc4 {[%emt 0:00:30]} Bb4 {[%emt 0:00:30]} 8. O-O {[%emt 0:00:30]} O-O {[%emt 0:00:27]} 9. Nh4 {[%emt 0:00:31]} Nbd7 {[%emt 0:00:33]} 10. f3 {[%emt 0:00:29]} Bg6 {[%emt 0:00:31]} 11. Nxg6 {[%emt 0:00:31]} hxg6 {[%emt 0:00:30]} 12. Qc2 {[%emt 0:00:29]} Qe7 {[%emt 0:00:00]} 13. Rd1 {[%emt 0:00:30]} Rfd8 {[%emt 0:00:00]} 14. Bd2 {[%emt 0:00:29]} c5 {[%emt 0:01:30]} 15. Be1 {[%emt 0:00:31]} cxd4 {[%emt 0:00:30]} 16. exd4 {[%emt 0:00:30]} Nb6 {[%emt 0:00:30]} 17. Bb3 {[%emt 0:00:29]} Rac8 {[%emt 0:00:29]} 18. Qe2 {[%emt 0:00:29]} Nbd5 {[%emt 0:00:30]} 19. Rac1 {[%emt 0:00:31]} Bxc3 {[%emt 0:00:31]} 20. bxc3 {[%emt 0:00:30]} Qa3 {[%emt 0:00:30]} 21. Qa2 {[%emt 0:00:27]} Qxa2 {[%emt 0:00:30]} 22. Bxa2 {[%emt 0:00:35]} Ne3 {[%emt 0:00:27]} 23. Rd3 {[%emt 0:00:27]} Nc4 {[%emt 0:00:33]} 24. Rb1 {[%emt 0:00:30]} Rd7 {[%emt 0:00:29]} 25. Rb4 {[%emt 0:00:31]} Na5 {[%emt 0:00:30]} 26. Rb5 {[%emt 0:00:31]} Nc4 {[%emt 0:00:30]} 27. Bg3 {[%emt 0:00:30]} Nd5 {[%emt 0:00:26]} 28. Rc5 {[%emt 0:00:20]} Rxc5 {[%emt 0:00:35]} 29. dxc5 {[%emt 0:00:41]} Na5 {[%emt 0:00:29]} 30. Kf2 {[%emt 0:00:28]} Nc6 {[%emt 0:00:31]} 31. Bb3 {[%emt 0:00:28]} Na5 {[%emt 0:00:28]} 32. Ba2 {[%emt 0:00:34]} Nc6 {[%emt 0:00:31]} 33. Bc4 {[%emt 0:00:29]} a6 {[%emt 0:00:31]} 34. Bd6 {[%emt 0:00:24]} Nde7 {[%emt 0:00:29]} 35. Ke2 {[%emt 0:00:35]} Kf8 {[%emt 0:00:31]} 36. f4 {[%emt 0:00:30]} Kg8 {[%emt 0:00:30]} 37. g4 {[%emt 0:00:30]} Nc8 {[%emt 0:00:30]} 38. Ke3 {[%emt 0:00:29]} N6e7 {[%emt 0:00:27]} 39. Ke4 {[%emt 0:00:31]} Nxd6+ {[%emt 0:00:22]} 40. cxd6 {[%emt 0:00:32]} Nc8 {[%emt 0:00:38]} 41. Ke5 {[%emt 0:30:30]} Nb6 {[%emt 0:30:31]} 42. Bb3 {[%emt 0:00:00]} Rd8 {[%emt 0:00:29]} 43. a5 {[%emt 0:00:59]} Nd7+ {[%emt 0:00:32]} 44. Kd4 {[%emt 0:00:30]} Nf6 {[%emt 0:00:26]} 45. Kc5 {[%emt 0:00:28]} Nd7+ {[%emt 0:00:34]} 46. Kb4 {[%emt 0:00:33]} g5 {[%emt 0:00:28]} 47. fxg5 {[%emt 0:00:28]} Ne5 {[%emt 0:00:33]} 48. Rd1 {[%emt 0:00:30]} Nxg4 {[%emt 0:00:29]} 49. g6 {[%emt 0:00:29]} Ne3 {[%emt 0:00:31]} 50. Re1 {[%emt 0:00:31]} Nf5 {[%emt 0:00:28]} 51. gxf7+ {[%emt 0:00:30]} Kxf7 {[%emt 0:00:31]} 52. Bxe6+ {[%emt 0:00:32] g5} 1-0

[Event "IND-ch Senior Open 2019"]
[Site "Mazitar"]
[Date "2019.12.12"]
[Round "4.22"]
[White "Ramu, K.."]
[Black "Padmini, Rout"]
[Result "1/2-1/2"]
[ECO "B90"]
[WhiteElo "2113"]
[BlackElo "2407"]
[Annotator "ChessBase"]
[PlyCount "20"]
[EventDate "2018.12.08"]
[EventType "swiss"]
[EventRounds "11"]
[EventCountry "IND"]
[SourceTitle "playchess.com"]
[Source "ChessBase"]
[SourceQuality "1"]
[TimeControl "40/5400+30:1800+30"]

1. e4 {[%emt 1:29:33]} c5 {[%emt 1:30:30]} 2. Nf3 {[%emt 0:01:24]} d6 {[%emt 0:00:30]} 3. d4 {[%emt 0:00:33]} cxd4 {[%emt 0:00:30]} 4. Nxd4 {[%emt 0:00:30]} Nf6 {[%emt 0:00:27]} 5. Nc3 {[%emt 0:00:30]} a6 {[%emt 0:00:00]} 6. Be3 {[%emt 0:00:28]} Ng4 {[%emt 0:00:00]} 7. Bc1 {[%emt 0:00:31]} Nf6 {[%emt 0:00:16]} 8. Be3 {[%emt 0:00:30]} Ng4 {[%emt 0:00:00]} 9. Bc1 {[%emt 0:00:30]} Nf6 10. Be3 Ng4 {[%emt 0:01:27]} 1/2-1/2

[Event "IND-ch Senior Open 2019"]
[Site "Mazitar"]
[Date "2019.12.12"]
[Round "4.23"]
[White "Rajesh, V A V"]
[Black "Arpan, Das"]
[Result "1-0"]
[ECO "E71"]
[WhiteElo "2393"]
[BlackElo "2112"]
[Annotator "ChessBase"]
[PlyCount "81"]
[EventDate "2018.12.08"]
[EventType "swiss"]
[EventRounds "11"]
[EventCountry "IND"]
[SourceTitle "playchess.com"]
[Source "ChessBase"]
[SourceQuality "1"]
[TimeControl "40/5400+30:1800+30"]

1. d4 {[%emt 1:30:04]} Nf6 {[%emt 1:30:29]} 2. c4 {[%emt 0:00:55]} g6 {[%emt 0:00:31]} 3. Nc3 {[%emt 0:00:27]} Bg7 {[%emt 0:00:26]} 4. e4 {[%emt 0:00:31]} d6 {[%emt 0:00:33]} 5. h3 {[%emt 0:00:31]} Nbd7 {[%emt 0:00:26]} 6. Bd3 {[%emt 0:00:30]} e5 {[%emt 0:00:32]} 7. d5 {[%emt 0:00:32]} Nc5 {[%emt 0:00:31]} 8. Bc2 {[%emt 0:00:30]} a5 {[%emt 0:00:20]} 9. Bg5 {[%emt 0:00:27]} Bd7 {[%emt 0:00:38]} 10. Nf3 {[%emt 0:00:00]} O-O {[%emt 0:00:31]} 11. g4 {[%emt 0:01:02]} c6 {[%emt 0:00:32]} 12. Be3 {[%emt 0:00:00]} cxd5 {[%emt 0:00:31]} 13. cxd5 Qc7 {[%emt 0:00:28]} 14. a4 {[%emt 0:00:00]} Rfb8 {[%emt 0:00:30]} 15. Qe2 {[%emt 0:00:00]} Qb6 {[%emt 0:00:31]} 16. Nb5 {[%emt 0:00:00]} Rc8 {[%emt 0:00:28]} 17. Nd2 {[%emt 0:02:58]} Bf8 {[%emt 0:00:30]} 18. O-O {[%emt 0:00:31]} Qd8 {[%emt 0:00:32]} 19. f3 {[%emt 0:00:31]} Ne8 {[%emt 0:00:30]} 20. Nc4 {[%emt 0:00:00]} Bxb5 {[%emt 0:00:25]} 21. axb5 {[%emt 0:01:01]} b6 {[%emt 0:00:28]} 22. b3 {[%emt 0:00:30]} Rab8 {[%emt 0:00:36]} 23. f4 {[%emt 0:00:28]} exf4 {[%emt 0:00:32]} 24. Rxf4 {[%emt 0:00:31]} Rb7 {[%emt 0:00:30]} 25. Raf1 {[%emt 0:00:13]} Rcc7 {[%emt 0:00:29]} 26. Bd4 {[%emt 0:00:45]} Bg7 {[%emt 0:00:31]} 27. Bxg7 {[%emt 0:00:29]} Nxg7 {[%emt 0:00:30]} 28. Qf2 {[%emt 0:00:31]} Re7 {[%emt 0:00:29]} 29. h4 {[%emt 0:00:28]} h5 {[%emt 0:00:31]} 30. g5 {[%emt 0:00:35]} Ne8 {[%emt 0:00:25]} 31. e5 {[%emt 0:00:30]} dxe5 {[%emt 0:00:35]} 32. Nxe5 {[%emt 0:00:30]} Rxe5 {[%emt 0:00:29]} 33. Rxf7 {[%emt 0:00:30]} Rxg5+ {[%emt 0:00:30]} 34. hxg5 {[%emt 0:00:30]} Qxg5+ {[%emt 0:00:30]} 35. Kh2 {[%emt 0:00:29]} Qe5+ {[%emt 0:00:31]} 36. Kh3 {[%emt 0:00:30]} Nd6 {[%emt 0:00:23]} 37. Rxb7 {[%emt 0:00:31]} Ncxb7 {[%emt 0:00:34]} 38. Qf8+ {[%emt 0:00:29]} Kh7 {[%emt 0:00:32]} 39. Bxg6+ {[%emt 0:00:31]} Kxg6 {[%emt 0:00:31]} 40. Rg1+ {[%emt 0:00:30]} Kh7 {[%emt 0:00:29]} 41. Qg8+ {[%emt 0:30:29]} 1-0

[Event "IND-ch Senior Open 2019"]
[Site "Mazitar"]
[Date "2019.12.12"]
[Round "4.24"]
[White "Kamdar Udit"]
[Black "Harshavardhan G B"]
[Result "0-1"]
[ECO "C27"]
[WhiteElo "2107"]
[BlackElo "2344"]
[Annotator "ChessBase"]
[PlyCount "102"]
[EventDate "2018.12.08"]
[EventType "swiss"]
[EventRounds "11"]
[EventCountry "IND"]
[SourceTitle "playchess.com"]
[Source "ChessBase"]
[SourceQuality "1"]
[TimeControl "40/5400+30:1800+30"]

1. e4 {[%emt 1:30:04]} e5 {[%emt 1:30:28]} 2. Bc4 {[%emt 0:00:55]} Nf6 {[%emt 0:00:29]} 3. Nc3 {[%emt 0:00:29]} Nxe4 {[%emt 0:00:32]} 4. Qh5 {[%emt 0:00:29]} Nd6 {[%emt 0:00:28]} 5. Bb3 {[%emt 0:00:30]} g6 {[%emt 0:00:31]} 6. Qxe5+ {[%emt 0:00:32]} Qe7 {[%emt 0:00:30]} 7. d4 {[%emt 0:00:30]} Nc6 {[%emt 0:00:00]} 8. Qxe7+ {[%emt 0:00:00]} Bxe7 {[%emt 0:01:02]} 9. Nd5 {[%emt 0:00:00]} Bd8 {[%emt 0:00:30]} 10. Nf3 {[%emt 0:00:00]} Na5 {[%emt 0:00:00]} 11. O-O {[%emt 0:00:00]} O-O {[%emt 0:00:04]} 12. Bh6 {[%emt 0:00:00]} Re8 {[%emt 0:00:00]} 13. Rfe1 {[%emt 0:00:00]} Nxb3 {[%emt 0:00:00]} 14. axb3 {[%emt 0:03:30]} f6 {[%emt 0:01:34]} 15. Bf4 {[%emt 0:00:00]} Rxe1+ {[%emt 0:01:21]} 16. Nxe1 {[%emt 0:00:00]} Ne8 {[%emt 0:00:30]} 17. b4 {[%emt 0:00:00]} d6 {[%emt 0:00:00]} 18. b5 {[%emt 0:02:00]} Bd7 {[%emt 0:01:00]} 19. c4 {[%emt 0:00:00]} Be6 {[%emt 0:00:31]} 20. Nc3 {[%emt 0:00:00]} Bxc4 {[%emt 0:00:26]} 21. d5 {[%emt 0:01:31]} a5 {[%emt 0:00:33]} 22. Ra4 {[%emt 0:00:29]} Bb3 {[%emt 0:00:31]} 23. Ra3 {[%emt 0:00:31]} a4 {[%emt 0:00:30]} 24. Nf3 {[%emt 0:00:00]} f5 {[%emt 0:00:00]} 25. Nd4 {[%emt 0:00:32]} Bc4 {[%emt 0:01:00]} 26. b3 {[%emt 0:00:00]} Bd3 {[%emt 0:00:30]} 27. bxa4 {[%emt 0:00:00]} Bf6 {[%emt 0:00:29]} 28. Nde2 {[%emt 0:00:00]} Bg7 {[%emt 0:00:30]} 29. Be3 {[%emt 0:00:00]} Bc4 {[%emt 0:00:31]} 30. Bd4 {[%emt 0:00:00]} Bxd4 {[%emt 0:00:29]} 31. Nxd4 {[%emt 0:03:28]} Nf6 {[%emt 0:00:31]} 32. Ne6 {[%emt 0:00:00]} Rc8 {[%emt 0:00:29]} 33. Nf4 {[%emt 0:01:00]} g5 {[%emt 0:00:30]} 34. Ne6 {[%emt 0:00:30]} h6 {[%emt 0:00:28]} 35. Nd4 {[%emt 0:00:30]} f4 {[%emt 0:00:00]} 36. Nf5 {[%emt 0:00:00]} Kf7 {[%emt 0:01:02]} 37. Ra1 {[%emt 0:00:58]} Nxd5 {[%emt 0:00:30]} 38. Nxd5 {[%emt 0:00:32]} Bxd5 {[%emt 0:00:31]} 39. Nxh6+ {[%emt 0:00:29]} Kg6 {[%emt 0:00:30]} 40. Ng4 {[%emt 0:00:31]} Ra8 {[%emt 0:00:29]} 41. h4 {[%emt 0:18:32]} Bc4 {[%emt 0:30:30]} 42. f3 {[%emt 0:00:00]} Bxb5 {[%emt 0:00:31]} 43. hxg5 {[%emt 0:12:57]} Rxa4 {[%emt 0:00:29]} 44. Re1 {[%emt 0:00:30]} Kxg5 {[%emt 0:00:30]} 45. Re7 {[%emt 0:00:30]} Rc4 {[%emt 0:00:31]} 46. Rf7 {[%emt 0:00:31]} Kg6 {[%emt 0:00:30]} 47. Rf8 {[%emt 0:00:00]} Kg7 {[%emt 0:00:30]} 48. Rf5 {[%emt 0:00:00]} Bd7 {[%emt 0:00:29]} 49. Rg5+ {[%emt 0:01:30]} Kf7 {[%emt 0:00:31]} 50. Nf2 {[%emt 0:00:30]} Kf6 {[%emt 0:00:29]} 51. Rh5 {[%emt 0:00:00]} Bf5 {[%emt 0:00:29]} 0-1

[Event "IND-ch Senior Open 2019"]
[Site "Mazitar"]
[Date "2019.12.12"]
[Round "4.25"]
[White "Bharat Kumar Reddy Poluri"]
[Black "Bakshi, Rutuja"]
[Result "1/2-1/2"]
[ECO "C09"]
[WhiteElo "2337"]
[BlackElo "2075"]
[Annotator "ChessBase"]
[PlyCount "43"]
[EventDate "2018.12.08"]
[EventType "swiss"]
[EventRounds "11"]
[EventCountry "IND"]
[SourceTitle "playchess.com"]
[Source "ChessBase"]
[SourceQuality "1"]
[TimeControl "40/5400+30:1800+30"]

1. e4 {[%emt 1:30:26]} e6 {[%emt 1:30:30]} 2. d4 {[%emt 0:00:32]} d5 {[%emt 0:00:29]} 3. Nd2 {[%emt 0:00:31]} c5 {[%emt 0:00:31]} 4. exd5 {[%emt 0:00:29]} exd5 {[%emt 0:00:28]} 5. Ngf3 {[%emt 0:00:31]} Nc6 {[%emt 0:00:30]} 6. Be2 {[%emt 0:00:29]} Bd6 {[%emt 0:00:31]} 7. dxc5 {[%emt 0:00:31]} Bxc5 {[%emt 0:00:31]} 8. O-O {[%emt 0:00:30]} Nge7 {[%emt 0:00:26]} 9. Nb3 {[%emt 0:00:31]} Bd6 {[%emt 0:00:33]} 10. Bg5 {[%emt 0:00:29]} O-O {[%emt 0:00:31]} 11. Bh4 {[%emt 0:00:30]} Bg4 {[%emt 0:00:29]} 12. Nfd4 {[%emt 0:00:30]} Bxe2 {[%emt 0:00:29]} 13. Qxe2 {[%emt 0:00:30]} Qd7 {[%emt 0:00:32]} 14. Rad1 {[%emt 0:00:20]} Rfe8 {[%emt 0:00:28]} 15. Bxe7 {[%emt 0:00:38]} Bxe7 {[%emt 0:00:32]} 16. Qf3 {[%emt 0:00:30]} Kh8 {[%emt 0:00:26]} 17. Nb5 {[%emt 0:00:31]} Rad8 {[%emt 0:00:33]} 18. g3 {[%emt 0:00:30]} a6 {[%emt 0:00:30]} 19. Nc3 {[%emt 0:00:30] b4 Ne2} f5 {[%emt 0:00:30]} 20. Qg2 {[%emt 0:00:30] Qxe7 Nf4} d4 {[%emt 0:00:31]} 21. a3 {[%emt 0:00:31]} a5 22. Nxa5 {[%emt 0:00:11] -error} 1/2-1/2

[Event "IND-ch Senior Open 2019"]
[Site "Mazitar"]
[Date "2019.12.14"]
[Round "6.3"]
[White "Aravindh, Chithambaram VR."]
[Black "Anurag, Mhamal"]
[Result "1-0"]
[ECO "A04"]
[WhiteElo "2605"]
[BlackElo "2490"]
[Annotator "RC"]
[PlyCount "117"]
[EventDate "2018.12.08"]
[EventType "swiss"]
[EventCountry "IND"]
[SourceTitle "playchess.com"]
[Source "ChessBase"]
[SourceQuality "1"]
[TimeControl "40/5400+30:1800+30"]

1. Nf3 g6 {[%emt 0:03:23]} 2. e4 Bg7 {[%emt 0:00:30]} 3. d4 e6 {[%emt 0:00:30]} 4. Nc3 {[%emt 0:00:33]} Ne7 {[%emt 0:00:04]} 5. Bg5 {[%emt 0:01:34]} h6 {[%emt 0:00:05]} 6. Bf4 {[%emt 0:00:04]} d6 {[%emt 0:00:12]} 7. Qd2 {[%emt 0:00:14]} a6 {[%emt 0:02:31]} 8. h4 {[%emt 0:01:20]} b5 {[%emt 0:01:59]} 9. Bd3 {[%emt 0:00:18]} Nbc6 {[%emt 0:22:07]} 10. Be3 {[%emt 0:04:54]} e5 {[%emt 0:04:06]} 11. dxe5 {[%emt 0:01:47]} dxe5 {[%emt 0:00:04]} 12. Bc5 {[%emt 0:01:00]} Bg4 {[%emt 0:13:19]} 13. Nh2 {[%emt 0:01:07]} Be6 {[%emt 0:00:51]} 14. a4 {[%emt 0:00:55]} b4 {[%emt 0:00:48]} 15. Ne2 {[%emt 0:00:16]} h5 {[%emt 0:09:59]} 16. O-O {[%emt 0:03:55]} Nc8 {[%emt 0:06:47]} 17. g3 {[%emt 0:11:31]} Nd6 {[%emt 0:03:14]} 18. Rfd1 {[%emt 0:07:31]} Bh6 {[%emt 0:02:51]} 19. Qe1 {[%emt 0:03:31]} g5 {[%emt 0:02:29]} 20. hxg5 Qxg5 21. Bxb4 {[%emt 0:05:26]} h4 {[%emt 0:13:32]} 22. Bxd6 {[%emt 0:01:31]} hxg3 {[%emt 0:00:06]} 23. Nxg3 {[%emt 0:00:15]} cxd6 {[%emt 0:00:08]} 24. Nf3 {[%emt 0:06:58]} Qf6 {[%emt 0:08:24]} 25. Ra3 {[%emt 0:01:24]} Bf4 {[%emt 0:00:34]} 26. Bf1 {[%emt 0:00:44]} Bg4 {[%emt 0:00:53]} 27. Bg2 {[%emt 0:01:43]} Rc8 {[%emt 0:02:02]} 28. Rc3 {[%emt 0:06:59]} Ke7 {[%emt 0:00:36]} 29. b4 {[%emt 0:00:26]} Bxg3 {[%emt 0:01:52]} 30. fxg3 {[%emt 0:00:09]} Nd4 {[%emt 0:00:29]} 31. Nxd4 {[%emt 0:01:27]} exd4 {[%emt 0:00:12]} 32. Rxc8 {[%emt 0:01:05]} Rxc8 {[%emt 0:00:02]} 33. Rd2 Bd7 {[%emt 0:01:19]} 34. e5 {[%emt 0:06:42]} dxe5 {[%emt 0:00:04]} 35. Rxd4 {[%emt 0:00:04]} Bxa4 {[%emt 0:00:16]} 36. c4 Kf8 {[%emt 0:00:51]} 37. Rh4 {[%emt 0:00:14]} Rd8 {[%emt 0:00:25]} 38. Qe3 {[%emt 0:00:37]} Rd4 {[%emt 0:00:53]} 39. Rh6 {[%emt 0:07:36]} Qf5 {[%emt 0:00:22]} 40. Rxa6 {[%emt 0:00:00]} Rd1+ {[%emt 0:00:00]} 41. Kh2 {[%emt 0:00:32]} Qh5+ {[%emt 0:13:19]} 42. Bh3 {[%emt 0:00:29]} Rb1 43. b5 Rb2+ {[%emt 0:14:28]} 44. Kg1 {[%emt 0:42:46]} Rb3 {[%emt 0:01:00]} 45. Qh6+ {[%emt 0:02:43]} Qxh6 {[%emt 0:00:01]} 46. Rxh6 {[%emt 0:00:04]} e4 {[%emt 0:02:28]} 47. Kf2 {[%emt 0:04:08]} Kg7 {[%emt 0:01:38]} 48. Ra6 {[%emt 0:01:15]} Rf3+ {[%emt 0:00:05]} 49. Ke1 {[%emt 0:02:33]} Bc2 {[%emt 0:02:04]} 50. Bf1 {[%emt 0:01:09]} Rb3 {[%emt 0:00:33]} 51. Ra1 {[%emt 0:01:20]} Kf6 {[%emt 0:00:33]} 52. Rc1 {[%emt 0:01:08]} Bd3 {[%emt 0:00:28]} 53. Bxd3 {[%emt 0:00:11]} exd3 {[%emt 0:00:12]} 54. Kd2 {[%emt 0:00:05]} Ke5 {[%emt 0:00:02]} 55. Rc3 {[%emt 0:00:09]} Rb2+ {[%emt 0:00:02]} 56. Kxd3 {[%emt 0:00:41]} Rg2 {[%emt 0:00:03]} 57. c5 {[%emt 0:00:23]} Rxg3+ {[%emt 0:01:58]} 58. Kc4 {[%emt 0:00:05]} Rg8 {[%emt 0:00:43]} 59. b6 {[%emt 0:00:25] Kd5+} 1-0